bitfinex/quotes_SOLUSD_20260214
["timestamp","ask_amount","ask_price","bid_price","bid_amount"]
[1771098533325,11.32515657,88.299,88.261,0.4893902]
[1771098533619,0.1,88.306,88.27,2.87665062]
[1771098533830,0.1,88.306,88.271,0.4893902]
[1771098534025,11.32438706,88.305,88.271,0.4893902]
[1771098534329,11.42438706,88.305,88.271,0.4893902]
[1771098535227,0.1,88.305,88.271,0.4893902]
[1771098535421,11.32297658,88.316,88.281,0.4893902]
[1771098537225,0.1,88.315,88.281,0.4893902]
[1771098537533,0.1,88.309,88.277,0.4893902]
[1771098537709,0.1,88.309,88.278,0.4893902]
[1771098538734,0.1,88.289,88.265,0.4893902]
[1771098538920,0.1,88.299,88.265,0.4893902]
[1771098539827,0.1,88.306,88.267,0.4893902]
[1771098540130,0.1,88.306,88.271,0.4893902]
[1771098541030,0.1,88.305,88.273,0.4893902]
[1771098541230,2.87665062,88.31,88.273,0.4893902]
[1771098541639,0.1,88.315,88.273,0.4893902]
[1771098541822,0.1,88.315,88.274,0.4893902]
[1771098542134,0.1,88.315,88.281,0.4893902]
[1771098542431,51.9,88.337,88.281,0.4893902]
[1771098542432,0.1,88.344,88.301,0.4893902]
[1771098542639,0.1,88.339,88.301,0.4893902]
[1771098543220,0.1,88.339,88.303,0.4893902]
[1771098543431,0.1,88.34,88.303,0.4893902]
[1771098544336,0.2,88.34,88.303,0.4893902]
[1771098544525,0.1,88.34,88.303,0.4893902]
[1771098544725,0.1,88.34,88.311,0.4893902]
[1771098545318,0.1,88.339,88.313,0.4893902]
[1771098548545,0.1,88.34,88.315,0.4893902]
[1771098549841,0.1,88.339,88.307,0.4893902]
[1771098550030,0.1,88.34,88.307,0.4893902]
[1771098550760,0.1,88.329,88.293,0.4893902]
[1771098550949,0.1,88.34,88.293,0.4893902]
[1771098551129,0.1,88.34,88.321,0.4893902]
[1771098552852,0.1,88.34,88.323,0.48564392]
[1771098553735,0.1,88.34,88.317,0.48564392]
[1771098554132,0.1,88.339,88.317,0.48564392]
[1771098555228,0.1,88.34,88.317,0.48564392]
[1771098555845,0.2,88.34,88.317,0.48564392]
[1771098556032,0.2,88.34,88.318,11.80836409]
[1771098556445,0.2,88.34,88.319,0.48564392]
[1771098557345,0.1,88.339,88.305,0.48564392]
[1771098557950,0.1,88.338,88.305,0.48564392]
[1771098558137,0.1,88.329,88.299,0.48564392]
[1771098558536,0.1,88.329,88.28,2.87665062]
[1771098558537,0.1,88.329,88.293,0.48564392]
[1771098558939,0.1,88.335,88.293,0.48564392]
[1771098559333,0.1,88.335,88.301,0.48564392]
[1771098560741,0.1,88.335,88.303,0.48564392]
[1771098561150,11.42002852,88.339,88.311,0.48564392]
[1771098561342,0.1,88.338,88.311,0.48564392]
[1771098561542,0.1,88.338,88.303,0.48564392]
[1771098562061,0.1,88.329,88.303,0.48564392]
[1771098562256,0.1,88.329,88.297,0.48564392]
[1771098563347,0.1,88.328,88.297,0.48564392]
[1771098563750,0.1,88.328,88.298,11.32528483]
[1771098563950,0.1,88.328,88.299,0.48564392]
[1771098564760,0.1,88.328,88.3,2.87665062]
[1771098565060,0.1,88.328,88.301,0.48564392]
[1771098565461,11.32002852,88.339,88.303,0.48564392]
[1771098565662,0.1,88.338,88.303,0.48564392]
[1771098566364,0.1,88.34,88.311,0.48564392]
[1771098567452,0.1,88.34,88.312,11.32348944]
[1771098567654,0.1,88.34,88.313,0.48564392]
[1771098569247,0.1,88.36,88.321,0.48564392]
[1771098569554,0.1,88.36,88.323,0.48564392]
[1771098569754,0.2,88.374,88.34,2.87665062]
[1771098569955,0.2,88.372,88.341,0.48564392]
[1771098570664,0.2,88.359,88.327,0.48564392]
[1771098570866,0.2,88.349,88.315,0.48564392]
[1771098571164,0.2,88.319,88.272,0.48564392]
[1771098571366,0.2,88.337,88.293,0.48564392]
[1771098571741,0.2,88.337,88.301,0.48564392]
[1771098572562,0.2,88.341,88.301,0.48564392]
[1771098573147,11.31990038,88.34,88.302,11.3247718]
[1771098573353,0.2,88.339,88.303,0.48564392]
[1771098574162,0.2,88.329,88.303,0.48564392]
[1771098575470,0.2,88.327,88.296,0.48564392]
[1771098575670,0.2,88.319,88.289,0.48564392]
[1771098575872,0.2,88.326,88.289,0.48564392]
[1771098576064,0.2,88.333,88.291,0.48564392]
[1771098577256,0.2,88.331,88.293,0.48564392]
[1771098578069,11.32092559,88.332,88.293,0.48564392]
[1771098578265,11.32092559,88.332,88.292,39.64119058]
[1771098578266,11.32028481,88.337,88.301,0.48564392]
[1771098578663,0.2,88.338,88.301,0.48564392]
[1771098578868,0.2,88.34,88.301,0.48564392]
[1771098579173,51.42,88.363,88.295,0.48564392]
[1771098579174,0.2,88.329,88.295,0.48564392]
[1771098579777,11.32015667,88.338,88.301,0.48564392]
[1771098580166,0.2,88.329,88.301,0.48564392]
[1771098580370,0.2,88.329,88.293,0.48564392]
[1771098581467,11.32143827,88.328,88.294,11.3257979]
[1771098581673,0.2,88.327,88.295,0.45581191]
[1771098584174,0.2,88.355,88.311,0.48527918]
[1771098584377,0.2,88.349,88.311,0.48527918]
[1771098584574,0.2,88.339,88.297,46.34956983]
[1771098584871,0.2,88.339,88.298,0.48527918]
[1771098585468,0.2,88.339,88.301,0.48527918]
[1771098586264,0.2,88.337,88.303,0.48527918]
[1771098587384,0.2,88.337,88.305,0.48527918]
[1771098587884,11.32015667,88.338,88.305,0.48527918]
[1771098588298,11.52015667,88.338,88.305,0.48527918]
[1771098588482,0.2,88.337,88.307,0.48527918]
[1771098589584,0.2,88.344,88.307,0.48527918]
[1771098589785,0.2,88.343,88.311,0.48527918]
[1771098590679,0.2,88.354,88.313,0.48527918]
[1771098590984,0.2,88.352,88.313,0.48527918]
[1771098591977,0.2,88.339,88.304,11.32445111]
[1771098592467,0.2,88.339,88.304,11.80973029]
[1771098592868,0.2,88.337,88.304,11.80973029]
[1771098593070,0.2,88.329,88.304,0.48527918]
[1771098593285,11.52015667,88.338,88.306,0.48527918]
[1771098593488,0.2,88.337,88.306,0.48527918]
[1771098594277,11.51934092,88.345,88.306,0.48527918]
[1771098594481,3.0741678,88.35,88.311,0.48527918]
[1771098594678,0.2,88.349,88.311,0.48527918]
[1771098595385,0.2,88.347,88.312,0.48527918]
[1771098596192,0.2,88.339,88.312,0.48527918]
[1771098596369,0.2,88.329,88.305,0.48527918]
[1771098596987,39.61606374,88.348,88.307,0.48527918]
[1771098596988,0.2,88.346,88.307,0.48527918]
[1771098597386,51.12,88.36,88.311,0.48527918]
[1771098597387,11.318338,88.353,88.311,0.48527918]
[1771098597580,0.2,88.352,88.311,0.48527918]
[1771098597778,3.0741678,88.35,88.311,0.48527918]
[1771098597995,0.2,88.349,88.311,0.48527918]
[1771098598580,11.51879399,88.349,88.313,0.48527918]
[1771098598891,0.2,88.339,88.313,0.48527918]
[1771098600107,0.2,88.338,88.313,0.48527918]
[1771098600498,11.31945503,88.344,88.315,0.48527918]
[1771098601197,51.08,88.366,88.315,0.48527918]
[1771098601198,0.2,88.358,88.315,0.48527918]
[1771098601391,2.8741678,88.35,88.315,0.48527918]
[1771098601613,0.2,88.349,88.315,0.48527918]
[1771098602092,0.2,88.339,88.31,11.32372351]
[1771098603215,0.2,88.337,88.31,11.32372351]
[1771098603905,0.2,88.337,88.31,11.80900269]
[1771098604604,0.2,88.337,88.311,0.48527918]
[1771098604805,0.2,88.349,88.311,0.48527918]
[1771098605013,11.31913565,88.346,88.311,0.48527918]
[1771098605184,11.51913565,88.346,88.311,0.48527918]
[1771098605509,0.2,88.329,88.295,0.48527918]
[1771098606600,0.2,88.327,88.297,0.48527918]
[1771098607284,0.2,88.336,88.301,0.48527918]
[1771098607482,11.52046034,88.336,88.301,0.48527918]
[1771098607683,0.2,88.335,88.301,0.48527918]
[1771098609200,11.32066927,88.334,88.301,0.48527918]
[1771098609504,0.2,88.333,88.301,0.48527918]
[1771098611016,0.2,88.319,88.289,0.48527918]
[1771098611299,0.2,88.319,88.29,11.32631102]
[1771098611608,0.2,88.326,88.291,0.48527918]
[1771098612184,2.8741678,88.32,88.291,0.48527918]
[1771098612391,0.2,88.309,88.277,11.32797897]
[1771098612593,0.2,88.309,88.278,0.48527918]
[1771098613613,0.2,88.299,88.278,0.48527918]
[1771098613809,0.2,88.299,88.269,0.45558456]
[1771098614005,0.2,88.299,88.257,50.72]
[1771098614006,0.2,88.289,88.266,11.32936384]
[1771098614605,2.8741678,88.3,88.267,0.45558456]
[1771098614812,11.32336762,88.313,88.281,0.45558456]
[1771098615584,0.2,88.309,88.281,0.45558456]
[1771098615807,0.2,88.309,88.276,11.32807135]
[1771098616106,0.2,88.309,88.277,0.45558456]
[1771098616486,0.2,88.317,88.281,0.45558456]
[1771098618810,0.2,88.315,88.281,0.45558456]
[1771098619102,0.2,88.299,88.266,0.45558456]
[1771098619507,0.2,88.299,88.267,0.45558456]
[1771098621397,0.2,88.297,88.267,0.45558456]
[1771098622716,0.2,88.297,88.269,0.45558456]
[1771098623008,0.49040172,88.344,88.272,0.45558456]
[1771098623213,0.49040172,88.343,88.311,0.45558456]
[1771098623516,56.58599245,88.362,88.311,0.45558456]
[1771098623517,0.49040172,88.341,88.311,0.45558456]
[1771098623702,0.49040172,88.341,88.308,11.32397704]
[1771098624215,0.49040172,88.341,88.31,2.8741678]
[1771098624417,0.49040172,88.339,88.311,11.32361766]
[1771098626312,0.49040172,88.339,88.304,11.32451531]
[1771098626504,0.49040172,88.339,88.305,0.45558456]
[1771098627419,0.49040172,88.339,88.306,11.32425882]
[1771098627713,0.49040172,88.339,88.306,11.77984338]
[1771098627918,0.49040172,88.339,88.31,2.8741678]
[1771098629798,0.49040172,88.339,88.31,14.6534499]
[1771098630509,0.49040172,88.337,88.299,11.78066404]
[1771098630698,0.49040172,88.337,88.3,2.8741678]
[1771098630900,0.49040172,88.337,88.301,0.45558456]
[1771098632517,28.29919981,88.342,88.3,2.8741678]
[1771098632518,0.49040172,88.335,88.303,0.45558456]
[1771098633620,0.49040172,88.335,88.297,0.45558456]
[1771098633816,0.49040172,88.335,88.298,0.45558456]
[1771098634418,0.49040172,88.335,88.3,2.87454719]
[1771098635921,0.49040172,88.333,88.301,11.78048461]
[1771098636107,0.49040172,88.333,88.302,0.45558456]
[1771098636806,0.49040172,88.339,88.311,0.45558456]
[1771098637924,0.49040172,88.339,88.312,0.45558456]
[1771098637925,11.81048139,88.339,88.312,0.45558456]
[1771098638521,0.49040172,88.338,88.31,2.87454719]
[1771098638722,0.49040172,88.338,88.31,3.33013175]
[1771098638921,0.49040172,88.338,88.311,0.45558456]
[1771098640225,0.49040172,88.338,88.313,0.45558456]
[1771098641426,0.47751325,88.347,88.313,0.45558456]
[1771098641723,28.29439211,88.357,88.321,0.45469232]
[1771098641724,11.31836037,88.353,88.321,0.45469232]
[1771098642112,0.47751325,88.352,88.321,0.45469232]
[1771098643534,11.31849101,88.351,88.321,0.45469232]
[1771098643826,0.49556186,88.35,88.321,0.45469232]
[1771098644826,0.49556186,88.35,88.315,0.48711987]
[1771098645531,0.49556186,88.349,88.31,2.87454719]
[1771098645719,0.49556186,88.347,88.311,0.48711987]
[1771098647420,0.49556186,88.345,88.313,0.48711987]
[1771098649830,0.49556186,88.343,88.313,0.48711987]
[1771098652312,2.87454719,88.35,88.313,0.48711987]
[1771098652313,0.49556186,88.341,88.313,0.48711987]
[1771098652713,0.49556186,88.341,88.311,11.32360218]
[1771098653025,0.49556186,88.341,88.311,11.81072205]
[1771098653414,0.49556186,88.339,88.312,0.48711987]
[1771098656849,28.29622754,88.351,88.311,11.32360218]
[1771098656850,0.49556186,88.346,88.321,0.48711987]
[1771098661434,50.64,88.357,88.296,28.31356463]
[1771098661435,0.49556186,88.339,88.296,28.31356463]
[1771098661739,0.49556186,88.339,88.297,11.32541309]
[1771098662337,0.49556186,88.339,88.297,11.81253296]
[1771098662826,0.49556186,88.337,88.298,0.48711987]
[1771098663134,0.49556186,88.337,88.291,11.32618273]
[1771098663135,0.49556186,88.343,88.311,0.48711987]
[1771098663352,0.49556186,88.343,88.321,0.48711987]
[1771098664836,0.49556186,88.343,88.311,11.81073753]
[1771098665145,0.49556186,88.343,88.312,0.48711987]
[1771098665340,0.49556186,88.343,88.311,11.32361766]
[1771098665527,50.64,88.348,88.311,11.32361766]
[1771098665528,0.49556186,88.341,88.311,11.32361766]
[1771098666040,0.49556186,88.341,88.302,11.3247718]
[1771098666244,0.49556186,88.341,88.302,11.81189167]
[1771098666438,0.49556186,88.341,88.303,0.48711987]
[1771098667022,0.49556186,88.339,88.303,0.48711987]
[1771098667954,0.49556186,88.339,88.305,0.48711987]
[1771098669354,11.32015667,88.338,88.305,0.48711987]
[1771098669537,0.49556186,88.337,88.305,0.48711987]
[1771098669735,0.49556186,88.337,88.307,0.48711987]
[1771098670037,0.49556186,88.337,88.311,0.48711987]
[1771098670450,11.31909536,88.347,88.32,2.87454719]
[1771098670752,50.68,88.344,88.321,0.48711987]
[1771098671243,51.17556186,88.344,88.321,0.48711987]
[1771098673458,11.31951597,88.343,88.321,0.48711987]
[1771098675961,11.79876413,88.343,88.321,0.48711987]
[1771098676469,0.47924816,88.342,88.321,0.48711987]
[1771098677859,0.47924816,88.35,88.321,0.48711987]
[1771098678035,50.74,88.342,88.321,0.48711987]
[1771098678841,0.47924816,88.341,88.321,0.48711987]
[1771098679959,0.47924816,88.341,88.322,11.32220737]
[1771098680253,0.47924816,88.341,88.322,11.81707742]
[1771098683061,0.47924816,88.341,88.317,11.32276965]
[1771098683738,0.47924816,88.341,88.317,11.8176397]
[1771098683956,0.47924816,88.341,88.318,0.49487005]
[1771098685748,0.47924816,88.341,88.319,11.32259196]
[1771098687559,0.47924816,88.341,88.319,0.49487005]
[1771098688559,0.47924816,88.341,88.32,11.32246376]
[1771098689150,0.47924816,88.341,88.321,0.49487005]
[1771098689965,2.87454719,88.36,88.331,0.49487005]
[1771098689966,0.47924816,88.36,88.331,0.49487005]
[1771098690263,5.36086188,88.389,88.325,0.49487005]
[1771098690264,0.47924816,88.358,88.325,0.49487005]
[1771098690950,0.47924816,88.358,88.327,0.49487005]
[1771098693066,0.47924816,88.358,88.329,0.49487005]
[1771098695069,0.47924816,88.356,88.331,0.49487005]
[1771098696466,0.47924816,88.354,88.333,0.49487005]
[1771098697269,50.92,88.355,88.333,0.49487005]
[1771098697950,0.47924816,88.354,88.333,0.49487005]
[1771098698273,0.47924816,88.354,88.327,11.81636289]
[1771098698661,0.47924816,88.354,88.331,0.49487005]
[1771098698853,50.92,88.355,88.331,0.49487005]
[1771098699358,0.47924816,88.356,88.331,0.49487005]
[1771098699556,0.47924816,88.387,88.351,0.49487005]
[1771098700074,0.47924816,88.382,88.351,0.49487005]
[1771098700879,11.31488807,88.38,88.352,0.49487005]
[1771098701382,0.47766578,88.378,88.352,0.49487005]
[1771098704183,0.47766578,88.378,88.354,0.45682195]
[1771098704485,0.2730662,88.401,88.354,0.45682195]
[1771098704486,0.48691059,88.384,88.354,0.45682195]
[1771098706279,0.48691059,88.384,88.355,11.3179786]
[1771098706484,0.48691059,88.38,88.356,0.45682195]
[1771098708677,0.48691059,88.38,88.358,0.45682195]
[1771098710358,0.48691059,88.386,88.36,0.45682195]
[1771098710566,0.48691059,88.386,88.331,45.86429065]
[1771098710567,0.48691059,88.389,88.343,0.45682195]
[1771098711480,0.48691059,88.379,88.343,0.45682195]
[1771098712359,0.48691059,88.377,88.343,0.45682195]
[1771098712561,0.48691059,88.377,88.332,22.9]
[1771098712562,0.48691059,88.369,88.336,11.77710936]
[1771098712789,0.48691059,88.359,88.325,0.45682195]
[1771098714565,0.48691059,88.347,88.312,0.45682195]
[1771098715587,0.48691059,88.347,88.314,0.45682195]
[1771098717182,0.48691059,88.347,88.316,0.45682195]
[1771098717790,0.48691059,88.345,88.316,0.45682195]
[1771098719389,0.48691059,88.345,88.317,11.32284837]
[1771098719771,0.48691059,88.345,88.318,0.45682195]
[1771098720591,0.48691059,88.343,88.313,0.45682195]
[1771098721675,0.48691059,88.341,88.313,0.45682195]
[1771098722195,0.48691059,88.341,88.315,0.45682195]
[1771098722493,0.48691059,88.349,88.315,0.45682195]
[1771098723478,0.48691059,88.348,88.315,0.45682195]
[1771098723679,0.48691059,88.348,88.317,0.45682195]
[1771098724697,0.48691059,88.346,88.317,0.45682195]
[1771098725899,0.48691059,88.346,88.319,0.45682195]
[1771098726790,0.48691059,88.346,88.321,0.45682195]
[1771098727494,0.48691059,88.352,88.321,0.45682195]
[1771098728693,11.31849101,88.351,88.321,0.45682195]
[1771098728894,0.48691059,88.349,88.314,0.45682195]
[1771098730393,2.87295206,88.35,88.316,0.45682195]
[1771098730394,0.48691059,88.347,88.316,0.45682195]
[1771098732908,50.96,88.357,88.31,0.49259034]
[1771098732909,0.46801471,88.339,88.31,0.49259034]
[1771098735116,0.46801471,88.339,88.311,11.32361766]
[1771098735417,0.46801471,88.339,88.312,0.49259034]
[1771098740116,0.46801471,88.339,88.314,0.49259034]
[1771098741410,0.46801471,88.338,88.314,0.49259034]
[1771098746015,0.46801471,88.345,88.316,0.49259034]
[1771098747421,0.46801471,88.343,88.316,0.49259034]
[1771098747810,0.46801471,88.343,88.318,0.49259034]
[1771098748625,11.31847309,88.352,88.32,2.87295206]
[1771098748927,0.46801471,88.351,88.321,0.49259034]
[1771098749135,0.46801471,88.349,88.321,0.49259034]
[1771098749423,0.46801471,88.349,88.323,0.49259034]
[1771098753426,0.46801471,88.349,88.325,0.49259034]
[1771098755733,0.46801471,88.347,88.325,0.49259034]
[1771098756028,0.46801471,88.347,88.315,11.32297879]
[1771098756242,0.46801471,88.347,88.316,0.49259034]
[1771098757429,0.46801471,88.347,88.318,0.49259034]
[1771098760625,0.46801471,88.347,88.319,11.32259196]
[1771098761019,0.46801471,88.347,88.319,11.807547]
[1771098761830,0.46801471,88.347,88.32,0.48495504]
[1771098763331,0.46849891,88.345,88.32,0.48495504]
[1771098763633,0.46849891,88.345,88.309,0.47683299]
[1771098764429,0.46849891,88.345,88.311,0.47683299]
[1771098765506,0.46849891,88.349,88.311,0.47683299]
[1771098766436,0.46849891,88.347,88.313,0.47683299]
[1771098766733,0.46849891,88.339,88.313,0.47683299]
[1771098768941,0.46849891,88.338,88.313,0.47683299]
[1771098769936,0.46849891,88.338,88.314,11.323233]
[1771098770138,0.46849891,88.338,88.315,0.47683299]
[1771098772140,2.87356352,88.35,88.3,82.14609194]
[1771098772141,0.46849891,88.343,88.317,0.47683299]
[1771098774755,0.46849891,88.341,88.317,0.47683299]
[1771098775556,0.46849891,88.341,88.312,11.32337134]
[1771098775557,0.46849891,88.329,88.279,0.47683299]
[1771098775857,0.46849891,88.319,88.279,0.47683299]
[1771098777051,0.46849891,88.317,88.281,0.47683299]
[1771098778548,0.46849891,88.317,88.282,11.32733739]
[1771098778750,0.46849891,88.317,88.283,0.47683299]
[1771098779051,2.87356352,88.31,88.283,0.47683299]
[1771098779249,0.46849891,88.309,88.282,11.32733739]
[1771098780468,0.46849891,88.309,88.283,0.47683299]
[1771098781253,0.46849891,88.307,88.283,0.47683299]
[1771098781454,0.46849891,88.307,88.277,0.47683299]
[1771098785178,51.04,88.317,88.271,51.02]
[1771098785179,0.46849891,88.339,88.301,0.47683299]
[1771098786575,0.46849891,88.329,88.301,0.47683299]
[1771098788384,0.46849891,88.329,88.302,11.80160479]
[1771098789285,0.46849891,88.329,88.303,0.47683299]
[1771098790883,0.46849891,88.329,88.304,11.32451531]
[1771098791072,0.46849891,88.329,88.305,0.47683299]
[1771098797373,0.46849891,88.329,88.307,0.4629198]
[1771098803094,0.47220348,88.338,88.309,0.4629198]
[1771098803296,0.47220348,88.338,88.308,11.32400235]
[1771098803297,0.47220348,88.338,88.311,0.4629198]
[1771098804791,0.47220348,88.338,88.305,0.4629198]
[1771098804988,0.47220348,88.329,88.3,0.4629198]
[1771098807177,0.47220348,88.329,88.301,11.32490005]
[1771098807378,0.47220348,88.328,88.301,11.78781985]
[1771098808694,0.47220348,88.326,88.301,0.4629198]
[1771098808900,0.47220348,88.319,88.29,0.4629198]
[1771098811497,0.47220348,88.319,88.291,11.32618273]
[1771098811695,0.47220348,88.319,88.292,0.4629198]
[1771098813900,11.3216319,88.327,88.294,0.4629198]
[1771098814102,0.47220348,88.326,88.294,0.4629198]
[1771098814896,11.32182281,88.325,88.294,0.4629198]
[1771098815105,0.47220348,88.324,88.294,0.4629198]
[1771098816989,0.47220348,88.322,88.294,0.4629198]
[1771098821306,0.45369326,88.32,88.294,0.4629198]
[1771098825612,51.12,88.328,88.296,0.47795433]
[1771098825788,62.44156371,88.328,88.296,0.47795433]
[1771098825988,0.46063188,88.327,88.296,0.47795433]
[1771098826190,0.46063188,88.327,88.301,0.47795433]
[1771098827511,0.46063188,88.327,88.302,11.3247718]
[1771098827697,0.46063188,88.327,88.303,0.47795433]
[1771098829315,0.46063188,88.327,88.305,0.47795433]
[1771098832621,0.46063188,88.325,88.293,0.47795433]
[1771098835100,0.46063188,88.336,88.301,0.47795433]
[1771098837214,0.46063188,88.334,88.302,0.47795433]
[1771098837511,0.46063188,88.339,88.311,0.47795433]
[1771098840929,0.46063188,88.337,88.306,0.47795433]
[1771098841327,28.29507584,88.355,88.311,0.47795433]
[1771098841524,0.46063188,88.365,88.321,0.47795433]
[1771098841722,0.46063188,88.359,88.321,0.47795433]
[1771098842637,0.46063188,88.349,88.321,0.47795433]
[1771098843133,0.46063188,88.348,88.316,0.47795433]
[1771098844234,0.46063188,88.348,88.31,3.35308408]
[1771098844542,0.46063188,88.339,88.301,0.47795433]
[1771098845218,0.46063188,88.337,88.302,0.47795433]
[1771098846039,0.46063188,88.329,88.296,11.80342188]
[1771098846438,0.46063188,88.329,88.297,0.47795433]
[1771098847345,0.46063188,88.327,88.297,0.47795433]
[1771098847527,0.46063188,88.326,88.291,11.32612571]
[1771098847836,0.46063188,88.309,88.273,0.47795433]
[1771098849441,0.46063188,88.309,88.275,0.47795433]
[1771098851650,0.46063188,88.309,88.276,11.32810729]
[1771098851834,0.46063188,88.309,88.277,0.47795433]
[1771098852346,0.46063188,88.307,88.277,0.47795433]
[1771098852544,0.46063188,88.299,88.268,11.80708833]
[1771098852846,0.46063188,88.299,88.269,0.47795433]
[1771098853925,0.46063188,88.299,88.271,0.49975136]
[1771098855647,0.46063188,88.299,88.27,11.3288773]
[1771098858032,0.46063188,88.299,88.27,0.49975136]
[1771098861738,0.46063188,88.299,88.272,0.49975136]
[1771098864137,0.45045689,88.297,88.272,0.49975136]
[1771098864444,0.45045689,88.297,88.273,11.32849229]
[1771098864642,0.45045689,88.297,88.272,0.49975136]
[1771098865039,0.45045689,88.289,88.265,0.49975136]
[1771098865452,0.45045689,88.289,88.264,11.32961981]
[1771098865940,0.45045689,88.289,88.264,0.49975136]
[1771098866548,0.45045689,88.288,88.264,0.49975136]
[1771098866945,0.45045689,88.288,88.257,11.33054601]
[1771098867657,0.45045689,88.279,88.257,11.83029737]
[1771098868244,0.45045689,88.279,88.258,0.49975136]
[1771098869564,2.87512975,88.29,88.26,0.49975136]
[1771098869565,3.32558664,88.29,88.26,0.49975136]
[1771098869747,0.45045689,88.289,88.26,0.49975136]
[1771098870156,0.45045689,88.269,88.256,20.44811625]
[1771098870351,0.45045689,88.288,88.248,0.49975136]
[1771098870659,0.45045689,88.288,88.251,0.49975136]
[1771098871361,0.45045689,88.299,88.271,0.49975136]
[1771098871669,0.45045689,88.299,88.273,0.49975136]
[1771098872245,0.45045689,88.299,88.272,11.32862062]
[1771098872451,0.45045689,88.299,88.245,50.84]
[1771098872452,0.45045689,88.289,88.254,0.49975136]
[1771098873561,0.45045689,88.279,88.255,11.83055414]
[1771098874862,0.45045689,88.279,88.255,11.33080278]
[1771098875063,0.45045689,88.279,88.255,11.83055414]
[1771098875266,0.45045689,88.279,88.256,0.49975136]
[1771098876667,0.45045689,88.279,88.258,0.49975136]
[1771098877766,0.45045689,88.284,88.258,0.49975136]
[1771098879171,0.45045689,88.283,88.258,0.49975136]
[1771098881270,0.49292513,88.281,88.258,0.49975136]
[1771098886571,0.49292513,88.281,88.26,0.47973252]
[1771098893456,0.49292513,88.281,88.247,0.47973252]
[1771098894977,0.46222835,88.279,88.247,0.47973252]
[1771098896873,0.46222835,88.279,88.249,0.47973252]
[1771098898075,0.46222835,88.279,88.251,0.47973252]
[1771098900590,0.46222835,88.259,88.234,51.1]
[1771098900770,0.46222835,88.239,88.23,0.2]
[1771098901276,0.46222835,88.239,88.215,11.81564586]
[1771098902587,0.3,88.236,88.2,0.2]
[1771098902796,2.87796851,88.21,88.172,0.47973252]
[1771098902983,2.87796851,88.19,88.172,0.47973252]
[1771098903381,2.87796851,88.2,88.172,0.47973252]
[1771098903679,65.92142619,88.234,88.181,0.5]
[1771098903680,2.87796851,88.22,88.181,0.5]
[1771098903884,87.8090097,88.23,88.191,0.5]
[1771098904286,2.87796851,88.22,88.191,0.5]
[1771098904477,84.93104119,88.23,88.191,0.5]
[1771098904478,87.8090097,88.23,88.191,0.5]
[1771098904677,11.33414183,88.229,88.192,0.5]
[1771098904872,2.87796851,88.21,88.181,0.5]
[1771098905283,2.87796851,88.22,88.182,0.5]
[1771098905488,124.6005376,88.229,88.182,0.5]
[1771098905489,51.34,88.219,88.182,0.5]
[1771098905683,96.26518302,88.229,88.2,2.87796851]
[1771098905684,84.93104119,88.229,88.2,2.87796851]
[1771098905879,84.93104119,88.229,88.201,0.5]
[1771098907277,84.93104119,88.229,88.203,0.5]
[1771098908499,84.93104119,88.229,88.21,2.87796851]
[1771098908698,84.93104119,88.229,88.211,0.5]
[1771098909096,84.93104119,88.229,88.21,2.87796851]
[1771098910396,84.93104119,88.229,88.204,11.33735431]
[1771098911294,84.93104119,88.229,88.205,0.47973252]
[1771098912498,84.93104119,88.229,88.207,0.47973252]
[1771098912890,84.93104119,88.229,88.206,11.33709724]
[1771098913278,84.93104119,88.229,88.2,2.87796851]
[1771098913484,84.93104119,88.229,88.183,45.86429065]
[1771098913785,84.93104119,88.229,88.052,68.14085549]
[1771098913786,0.45335212,88.252,88.22,2.87796851]
[1771098914191,0.45335212,88.252,88.23,2.87796851]
[1771098914605,0.45335212,88.252,88.22,2.87796851]
[1771098914982,0.5,88.264,88.23,2.87796851]
[1771098915183,0.5,88.264,88.24,2.87796851]
[1771098916600,0.5,88.264,88.241,11.33260049]
[1771098916805,7.46132297,88.265,88.241,11.33260049]
[1771098917098,0.5,88.264,88.24,2.87796851]
[1771098917285,0.5,88.264,88.236,11.33316761]
[1771098918093,0.5,88.264,88.24,2.87796851]
[1771098918300,0.5,88.264,88.236,11.33316761]
[1771098918803,0.5,88.264,88.24,2.87796851]
[1771098919306,0.5,88.263,88.23,2.87796851]
[1771098920507,0.5,88.263,88.231,11.33388491]
[1771098922411,0.5,88.263,88.232,0.03150563]
[1771098924209,0.5,88.263,88.241,0.05244166]
[1771098924399,7.46132297,88.265,88.25,2.93041017]
[1771098925086,0.5,88.272,88.25,2.93041017]
[1771098926086,0.5,88.272,88.251,0.07289951]
[1771098926292,0.5,88.279,88.25,2.87796851]